bitfinex-derivatives/quotes_SOLF0:USTF0_20250819
["timestamp","ask_amount","ask_price","bid_price","bid_amount"]
[1755595359204,4.5200064,181.82,181.75,5.84789353]
[1755595359410,7.5900064,181.81,181.75,5.84789353]
[1755595359606,3.07,181.79,181.75,5.84789353]
[1755595360111,3.07,181.79,181.75,3.64789353]
[1755595360307,3.07,181.83,181.75,5.84789353]
[1755595360505,4.51852472,181.82,181.75,5.84789353]
[1755595360708,7.58852472,181.81,181.75,5.84789353]
[1755595360907,7.58852472,181.8,181.76,2.2]
[1755595361107,3.07,181.8,181.76,2.2]
[1755595361811,369.88,181.84,181.76,2.2]
[1755595362012,3.07,181.79,181.76,2.2]
[1755595363213,3.07,181.83,181.75,5.84789353]
[1755595363612,4.51687733,181.82,181.75,5.84789353]
[1755595363809,7.58687733,181.81,181.75,5.84789353]
[1755595364313,3.07,181.79,181.76,2.2]
[1755595364816,369.88,181.84,181.75,3.64789353]
[1755595364817,3.07,181.78,181.75,3.64789353]
[1755595365013,3.07,181.78,181.75,5.84789353]
[1755595371019,369.88,181.84,181.75,3.64789353]
[1755595371317,3.07,181.82,181.75,3.64789353]
[1755595371518,3.07,181.79,181.75,3.64789353]
[1755595371817,3.07,181.79,181.76,2.2]
[1755595375521,3.06,181.78,181.76,2.2]
[1755595375718,3.06,181.78,181.75,5.83789353]
[1755595376113,369.88,181.84,181.75,5.83789353]
[1755595376322,3.06,181.77,181.75,5.83789353]
[1755595376615,3.06,181.77,181.75,2.19]
[1755595377017,3.06,181.83,181.73,2.19]
[1755595377218,3.06,181.81,181.73,2.19]
[1755595377421,3.06,181.79,181.73,2.19]
[1755595383125,4.45360104,181.78,181.73,2.19]
[1755595383320,4.45380008,181.77,181.72,3.64789353]
[1755595383526,3.06,181.77,181.74,2.19]
[1755595383720,0.95760928,181.85,181.74,2.19]
[1755595383922,3.06,181.82,181.71,6.69991626]
[1755595384117,3.06,181.8,181.71,2.19]
[1755595384320,3.06,181.78,181.71,2.19]
[1755595384624,4.45396815,181.77,181.71,2.19]
[1755595385427,3.06,181.76,181.71,2.19]
[1755595385628,3.06,181.76,181.72,2.19]
[1755595385827,3.06,181.82,181.74,2.19]
[1755595386028,3.06,181.8,181.74,2.19]
[1755595386225,4.45525289,181.79,181.74,2.19]
[1755595386430,3.06,181.77,181.74,2.19]
[1755595387626,3.06,181.82,181.72,6.69991626]
[1755595387834,3.06,181.8,181.73,2.19]
[1755595388024,4.45547195,181.79,181.73,2.19]
[1755595388228,4.45547195,181.78,181.73,2.19]
[1755595388530,4.45547195,181.77,181.73,2.19]
[1755595388732,3.06,181.81,181.73,5.5004]
[1755595388933,7.51539328,181.8,181.74,2.19]
[1755595389132,4.45539328,181.79,181.73,4.50991626]
[1755595389334,3.06,181.84,181.74,2.19]
[1755595389533,3.06,181.82,181.74,2.19]
[1755595389727,4.18121325,181.81,181.74,2.19]
[1755595389928,3.06,181.8,181.74,2.19]
[1755595394934,3.06,181.78,181.74,2.19]
[1755595395132,3.06,181.77,181.74,2.19]
[1755595396437,3.06,181.77,181.74,4.51383764]
[1755595398041,3.06,181.76,181.74,2.19]
[1755595398242,2.32383764,181.82,181.74,4.51383764]
[1755595398439,3.06,181.8,181.74,4.51383764]
[1755595398746,4.1852407,181.79,181.74,4.51383764]
[1755595398948,3.06,181.77,181.74,4.51383764]
[1755595400040,3.06,181.77,181.75,2.19]
[1755595401646,3.06,181.77,181.74,2.32383764]
[1755595401947,3.06,181.77,181.74,4.51383764]
[1755595402145,3.06,181.77,181.74,2.19]
[1755595402442,3.06,181.77,181.74,4.51383764]
[1755595404348,3.1,181.8,181.75,2.2]
[1755595404542,4.17907395,181.79,181.74,4.52383764]
[1755595404846,3.1,181.81,181.78,2.2]
[1755595405049,4.17884778,181.8,181.78,2.2]
[1755595405243,3.1,181.8,181.78,2.2]
[1755595405445,3.1,181.8,181.74,4.50991626]
[1755595405648,3.1,181.8,181.77,4.52383764]
[1755595405850,3.1,181.82,181.77,2.32383764]
[1755595406037,3.1,181.8,181.77,2.32383764]
[1755595406241,3.1,181.79,181.77,2.32383764]
[1755595407950,3.1,181.79,181.77,4.52383764]
[1755595408449,2.32383764,181.83,181.77,4.52383764]
[1755595408845,3.1,181.81,181.78,2.2]
[1755595409246,2.32383764,181.83,181.77,2.32383764]
[1755595409441,7.27800535,181.82,181.77,2.32383764]
[1755595409647,7.27800535,181.81,181.78,2.2]
[1755595409848,3.1,181.81,181.78,2.2]
[1755595410354,3.1,181.82,181.78,2.2]
[1755595410556,4.17775679,181.81,181.77,2.32383764]
[1755595410758,3.1,181.83,181.77,2.32383764]
[1755595411053,3.1,181.81,181.75,2.32383764]
[1755595412549,3.1,181.79,181.74,4.50991626]
[1755595412751,3.1,181.77,181.73,2.2]
[1755595412955,3.1,181.77,181.74,2.2]
[1755595413148,2.32383764,181.79,181.74,2.2]
[1755595413149,3.1,181.78,181.74,2.2]
[1755595413349,4.41697821,181.77,181.72,6.8337539]
[1755595413545,3.1,181.78,181.75,2.2]
[1755595413745,4.41714627,181.77,181.75,2.2]
[1755595413952,3.1,181.78,181.75,2.2]
[1755595414149,4.41714627,181.77,181.75,2.2]
[1755595414352,2.32383764,181.79,181.72,6.8337539]
[1755595414656,7.51700564,181.78,181.76,2.2]
[1755595414844,4.41700564,181.77,181.76,2.2]
[1755595415754,4.41700564,181.77,181.72,6.8337539]
[1755595415954,3.1,181.78,181.75,2.2]
[1755595416149,4.41678841,181.77,181.75,2.2]
[1755595416357,3.1,181.78,181.75,2.2]
[1755595416560,4.41674787,181.77,181.75,2.2]
[1755595416858,7.51674787,181.76,181.72,2.2]
[1755595417157,3.1,181.76,181.73,2.2]
[1755595420454,3.1,181.76,181.74,2.2]
[1755595424071,3.1,181.76,181.71,6.8337539]
[1755595424271,3.1,181.75,181.7,4.50991626]
[1755595424472,3.1,181.72,181.69,4.50991626]
[1755595424868,2.32383764,181.74,181.68,4.50991626]
[1755595425069,3.1,181.72,181.69,2.21]
[1755595425873,3.1,181.72,181.69,4.53383764]
[1755595427278,5.42383764,181.76,181.71,2.21]
[1755595427469,4.41312861,181.75,181.71,2.32383764]
[1755595427675,3.1,181.76,181.73,2.21]
[1755595427974,4.41312759,181.75,181.73,2.21]
[1755595428177,3.1,181.75,181.71,2.32383764]
[1755595428477,3.1,181.78,181.73,2.21]
[1755595428678,4.41238895,181.77,181.73,2.21]
[1755595428981,7.51238895,181.76,181.73,2.21]
[1755595429279,3.1,181.76,181.73,2.21]
[1755595429877,2.32383764,181.79,181.73,2.21]
[1755595430075,3.1,181.75,181.71,4.53383764]
[1755595430273,3.1,181.76,181.7,2.32383764]
[1755595430473,6.75780335,181.75,181.68,9.0437539]
[1755595430780,3.1,181.75,181.69,6.71991626]
[1755595431276,3.1,181.75,181.69,9.0437539]
[1755595431578,3.1,181.75,181.69,6.8337539]
[1755595431779,3.1,181.75,181.72,2.21]
[1755595432278,3.15,181.75,181.69,4.52383764]
[1755595432979,2.32383764,181.81,181.73,2.32383764]
[1755595433180,7.58318695,181.8,181.73,4.52383764]
[1755595433382,4.43318695,181.79,181.73,4.52383764]
[1755595433682,7.58318695,181.78,181.74,2.2]
[1755595433882,4.43318695,181.77,181.74,2.2]
[1755595434071,3.15,181.78,181.73,2.32383764]
[1755595434275,6.16159525,181.86,181.76,2.2]
[1755595434276,3.63033994,181.86,181.76,2.2]
[1755595434583,3.15,181.8,181.76,2.2]
[1755595434780,4.43239224,181.79,181.73,5.83033994]
[1755595434982,3.15,181.8,181.73,5.83033994]
[1755595435179,4.43239224,181.79,181.73,5.83033994]
[1755595435380,3.15,181.8,181.73,10.3402562]
[1755595435580,4.43220298,181.79,181.73,10.3402562]
[1755595435776,3.15,181.8,181.73,10.3402562]
[1755595436186,4.43220298,181.79,181.73,10.3402562]
[1755595436383,3.15,181.8,181.73,10.3402562]
[1755595436579,4.43216399,181.79,181.73,10.3402562]
[1755595436883,3.15,181.8,181.73,10.3402562]
[1755595437085,4.43216399,181.79,181.73,10.3402562]
[1755595437380,3.15,181.8,181.73,10.3402562]
[1755595437583,4.43212527,181.79,181.71,4.50991626]
[1755595437886,3.15,181.75,181.71,6.70991626]
[1755595438185,3.15,181.74,181.71,6.70991626]
[1755595438379,3.15,181.79,181.71,6.70991626]
[1755595438574,4.43267206,181.78,181.71,6.70991626]
[1755595438787,3.15,181.79,181.71,6.70991626]
[1755595438983,4.43267206,181.78,181.71,6.70991626]
[1755595439179,6.16159525,181.86,181.71,4.50991626]
[1755595439380,7.58265754,181.85,181.75,4.50991626]
[1755595439585,4.43265754,181.84,181.76,2.2]
[1755595439776,4.43265754,181.83,181.76,2.2]
[1755595439975,4.43265754,181.82,181.76,2.2]
[1755595440184,3.15,181.85,181.76,2.2]
[1755595440385,4.43099895,181.84,181.76,2.2]
[1755595440582,4.43099895,181.83,181.76,7.6995]
[1755595440883,3.15,181.85,181.78,2.2]
[1755595441093,4.43099273,181.84,181.78,2.2]
[1755595441386,3.15,181.85,181.79,2.2]
[1755595441681,374.24772529,181.91,181.8,2.2]
[1755595441682,7.58070246,181.84,181.8,2.2]
[1755595441889,3.15,181.84,181.78,2.2]
[1755595444386,3.15,181.84,181.78,6.70991626]
[1755595445787,3.15,181.84,181.78,2.2]
[1755595445990,373.76738535,181.91,181.78,2.2]
[1755595446185,373.76738535,181.91,181.81,2.2]
[1755595446186,3.15,181.89,181.81,2.2]
[1755595449690,0.95710887,181.95,181.83,3.63033994]
[1755595449888,3.15,181.93,181.84,2.2]
[1755595450091,4.41214513,181.92,181.84,2.2]
[1755595450393,3.15,181.91,181.84,2.2]
[1755595459005,3.15,181.91,181.81,2.2]
[1755595461397,3.15,181.91,181.81,5.4981]
[1755595461598,3.15,181.91,181.82,2.2]
[1755595464108,3.15,181.91,181.78,2.2]
[1755595464604,3.15,181.91,181.79,2.2]
[1755595465206,3.15,181.91,181.79,7.6985]
[1755595465409,3.15,181.91,181.8,2.2]
[1755595471908,3.15,181.91,181.8,5.83033994]
[1755595472113,3.15,181.91,181.81,2.2]
[1755595477218,4.38333709,181.9,181.81,2.2]
[1755595477417,3.15,181.91,181.81,2.2]
[1755595477610,4.38360776,181.9,181.81,2.2]
[1755595477810,3.15,181.91,181.81,2.2]
[1755595478012,4.38360776,181.9,181.81,2.2]
[1755595478214,2.92,181.89,181.81,2.2]
[1755595478813,3.63033994,181.93,181.81,2.2]
[1755595479013,4.38552715,181.92,181.81,2.2]
[1755595479315,2.92,181.9,181.81,2.2]
[1755595480312,2.92,181.9,181.83,2.32153064]
[1755595480509,2.92,181.9,181.84,2.2]
[1755595483317,2.92,181.88,181.85,2.2]
[1755595483919,2.92,181.87,181.85,2.2]
[1755595484121,2.92,181.87,181.83,2.32153064]
[1755595484317,2.92,181.87,181.84,2.2]
[1755595484517,2.32153064,181.89,181.84,2.2]
[1755595484821,2.92,181.85,181.82,4.52153064]
[1755595485121,2.92,181.85,181.83,2.2]
[1755595485314,2.92,181.88,181.83,2.2]
[1755595485514,2.92,181.87,181.83,2.2]
[1755595485711,2.92,181.88,181.83,2.2]
[1755595485915,2.32153064,181.89,181.83,2.2]
[1755595486115,2.92,181.86,181.83,2.2]
[1755595486315,2.92,181.88,181.82,4.52153064]
[1755595486519,2.92,181.88,181.81,4.49147461]
[1755595486713,2.92,181.88,181.81,6.81300525]
[1755595486918,2.92,181.86,181.81,2.32153064]
[1755595487121,2.92,181.85,181.81,9.01300525]
[1755595487621,2.92,181.85,181.81,6.81300525]
[1755595487821,2.92,181.85,181.82,2.2]
[1755595488523,2.92,181.85,181.83,2.2]
[1755595489017,2.32153064,181.89,181.81,6.81300525]
[1755595489228,4.4045949,181.88,181.83,2.32153064]
[1755595489417,4.4045949,181.87,181.84,2.2]
[1755595489617,4.4045949,181.86,181.84,2.2]
[1755595489812,2.32153064,181.89,181.84,2.2]
[1755595490013,2.92,181.86,181.83,2.32153064]
[1755595490416,2.92,181.86,181.83,4.52153064]
[1755595490619,2.92,181.86,181.83,2.2]
[1755595491225,2.32153064,181.89,181.83,2.2]
[1755595491426,4.40383686,181.88,181.82,2.32153064]
[1755595491626,7.32383686,181.87,181.84,2.2]
[1755595491824,4.40383686,181.86,181.84,2.2]
[1755595492124,2.92,181.87,181.84,2.2]
[1755595492323,4.40383686,181.86,181.83,2.19]
[1755595492526,2.32153064,181.89,181.84,2.19]
[1755595492727,2.93,181.87,181.84,2.19]
[1755595492928,4.40370193,181.86,181.84,2.19]
[1755595493223,2.93,181.86,181.84,2.19]
[1755595494128,2.93,181.85,181.82,4.51153064]
[1755595494430,2.93,181.83,181.79,4.49147461]
[1755595494625,2.93,181.81,181.79,4.49147461]
[1755595495332,2.32153064,181.85,181.79,4.49147461]
[1755595495530,2.93,181.82,181.79,6.68147461]
[1755595496036,2.93,181.81,181.78,6.81300525]
[1755595496334,2.93,181.81,181.78,4.49147461]
[1755595496526,2.93,181.86,181.78,4.49147461]
[1755595496726,4.40251333,181.85,181.78,4.49147461]
[1755595496924,2.93,181.83,181.78,4.49147461]
[1755595497129,2.93,181.83,181.77,4.49147461]
[1755595498133,4.40173701,181.82,181.75,4.49147461]
[1755595498336,2.93,181.81,181.75,4.49147461]
[1755595498930,4.4008822,181.8,181.74,113.55583426]
[1755595499232,2.93,181.77,181.73,141.90147461]
[1755595499432,2.93,181.77,181.73,6.68147461]
[1755595500240,3.62990496,181.81,181.72,4.49147461]
[1755595500445,2.93,181.79,181.71,4.49147461]
[1755595500836,4.39937829,181.78,181.7,6.68147461]
[1755595501140,7.32937829,181.77,181.7,2.19]
[1755595501339,2.93,181.75,181.69,4.49147461]
[1755595501638,2.93,181.75,181.66,6.68147461]
[1755595502343,2.93,181.75,181.66,2.19]
[1755595503343,3.62990496,181.75,181.63,139.71147461]
[1755595503543,2.93,181.74,181.64,2.19]
[1755595513751,2.93,181.78,181.68,9.13190496]
[1755595513937,2.93,181.78,181.69,2.19]
[1755595516739,2.93,181.78,181.75,0.19398465]
[1755595516740,2.57635183,181.78,181.75,0.19398465]
[1755595516942,3.62990496,181.79,181.75,0.19398465]
[1755595518751,2.93,181.78,181.75,0.19398465]
[1755595518946,3.62990496,181.79,181.75,0.19398465]
[1755595518947,2.93,181.77,181.75,0.19398465]
[1755595519148,2.93,181.76,181.75,0.19398465]
[1755595521245,0.56,181.76,181.71,0.20542503]
[1755595521443,2.93,181.78,181.71,0.20542503]
[1755595521953,2.93,181.75,181.71,0.20542503]
[1755595524652,3.14,181.74,181.71,0.20542503]
[1755595524950,3.14,181.72,181.71,0.20542503]
[1755595533851,3.62990496,181.76,181.71,0.20542503]
[1755595534057,3.14,181.76,181.72,2.75]
[1755595534251,3.14,181.79,181.71,0.20542503]
[1755595534456,3.14,181.78,181.72,2.75]
[1755595538562,4.39090811,181.77,181.71,0.20542503]
[1755595538764,3.14,181.81,181.72,2.75]
[1755595539061,4.39074108,181.8,181.72,2.75]
[1755595539263,4.39074108,181.79,181.72,2.75]
[1755595539458,4.39074108,181.78,181.72,2.75]
[1755595539653,4.39074108,181.77,181.72,2.75]
[1755595539855,3.14,181.84,181.73,2.75]
[1755595540054,4.39361052,181.83,181.75,2.75]
[1755595540259,4.39361052,181.82,181.75,2.75]
[1755595540459,4.39361052,181.81,181.75,2.75]
[1755595540663,3.14,181.84,181.75,2.75]
[1755595540960,4.39512303,181.83,181.75,2.75]
[1755595541262,3.14,181.84,181.75,2.75]
[1755595541263,4.39512303,181.82,181.75,2.75]
[1755595541463,4.39512303,181.81,181.76,2.75]
[1755595541663,3.14,181.84,181.76,2.75]
[1755595541965,4.39672458,181.83,181.77,2.75]
[1755595542163,135.28,181.86,181.77,2.75]
[1755595542358,4.39627381,181.85,181.77,2.75]
[1755595542556,135.28,181.86,181.77,2.75]
[1755595542557,4.39627381,181.84,181.77,2.75]
[1755595542753,4.39627381,181.83,181.77,2.75]
[1755595542957,135.28,181.86,181.77,2.75]
[1755595543158,4.39727852,181.85,181.77,2.75]
[1755595543359,4.39727852,181.84,181.77,2.75]
[1755595543559,4.39727852,181.83,181.77,2.75]
[1755595543765,3.14,181.85,181.77,2.75]
[1755595544166,4.39726328,181.84,181.77,2.75]
[1755595544464,3.14,181.82,181.73,2.75]
[1755595545960,3.14,181.82,181.73,7.23951953]
[1755595546255,3.14,181.82,181.74,2.75]
[1755595551865,3.14,181.93,181.75,2.75]
[1755595552063,3.14,181.9,181.79,2.75]
[1755595552269,3.14,181.88,181.79,2.75]
[1755595555569,4.38088433,181.87,181.76,2.75]
[1755595555776,2.93,181.86,181.76,2.75]
[1755595558671,2.93,181.84,181.76,2.75]
[1755595560272,2.93,181.84,181.72,3.62990496]
[1755595560473,2.93,181.84,181.71,2.95542503]
[1755595560474,4.38065431,181.83,181.71,2.95542503]
[1755595560776,2.93,181.81,181.71,2.95542503]
[1755595564584,2.93,181.78,181.71,2.95542503]
[1755595564881,2.93,181.78,181.71,0.20542503]
[1755595569679,3.62990496,181.76,181.71,0.20542503]
[1755595569878,135.34,181.81,181.71,0.20542503]
[1755595569879,3.62990496,181.73,181.71,0.20542503]
[1755595570082,2.93,181.72,181.71,0.20542503]
[1755595573982,2.93,181.75,181.72,2.75]
[1755595574377,3.62990496,181.78,181.71,0.20542503]
[1755595574583,3.62990496,181.78,181.75,2.75]
[1755595574584,4.38363023,181.77,181.75,2.75]
[1755595574784,4.38363023,181.76,181.71,0.20542503]
[1755595575089,3.62990496,181.78,181.73,2.75]
[1755595575390,2.93,181.8,181.72,2.75]
[1755595575692,4.38339026,181.79,181.72,2.75]
[1755595575992,2.93,181.8,181.72,2.75]
[1755595576187,4.3830557,181.79,181.72,2.75]
[1755595576485,2.93,181.8,181.72,2.75]
[1755595576679,2.93,181.83,181.73,2.75]
[1755595576883,4.38334411,181.82,181.73,2.75]
[1755595577084,2.93,181.83,181.73,2.75]
[1755595578091,369.64,181.85,181.75,3.62990496]
[1755595578290,369.64,181.85,181.76,2.75]
[1755595578699,2.93,181.86,181.76,2.75]
[1755595579185,135.5,181.87,181.77,2.75]
[1755595579790,135.5,181.87,181.77,8.2493]
[1755595579989,135.5,181.87,181.78,6.37990496]
[1755595580189,135.5,181.87,181.79,2.75]
[1755595584387,3.16,181.93,181.79,2.75]
[1755595584591,4.32796948,181.92,181.79,2.75]
[1755595584791,3.16,181.93,181.79,2.75]
[1755595585093,3.16,181.91,181.79,2.75]
[1755595589596,3.16,181.94,181.82,2.74]
[1755595590097,3.16,181.94,181.83,2.74]
[1755595598405,6.78990496,181.94,181.83,2.74]
[1755595599106,3.16,181.93,181.83,2.74]
[1755595599703,3.16,181.9,181.83,2.74]
[1755595600509,135.16,181.92,181.83,2.74]
[1755595600806,135.16,181.92,181.83,8.2375]
[1755595601101,135.16,181.92,181.83,2.74]
[1755595603306,3.16,181.91,181.83,2.74]
[1755595605605,6.78990496,181.91,181.8,2.74]
[1755595605803,3.16,181.9,181.8,2.74]
[1755595607106,3.16,181.9,181.8,5.4982]
[1755595607304,3.16,181.9,181.81,2.74]
[1755595607705,3.16,181.9,181.82,5.4977]
[1755595607909,3.16,181.9,181.83,2.74]
[1755595610812,135.16,181.92,181.83,2.74]
[1755595611813,135.16,181.92,181.85,2.74]
[1755595612922,3.16,181.93,181.85,2.74]
[1755595617218,3.16,181.93,181.85,8.2369]
[1755595617921,3.16,181.93,181.86,2.75]
[1755595619615,3.02,181.96,181.86,2.75]
[1755595619810,4.33662211,181.95,181.86,2.75]
[1755595620020,3.02,181.96,181.88,2.75]
[1755595620220,4.33656333,181.95,181.88,2.75]
[1755595620413,4.33656333,181.94,181.88,2.75]
[1755595620613,3.02,181.96,181.88,2.75]
[1755595620916,4.34076438,181.95,181.88,8.2459]
[1755595621120,3.02,181.96,181.88,8.2459]
[1755595621421,3.02,181.94,181.88,8.2459]
[1755595622124,3.02,181.94,181.88,2.75]
[1755595623218,3.02,181.92,181.85,4.4756422]
[1755595623424,4.34626335,181.91,181.84,7.2256422]
[1755595623726,4.34626335,181.91,181.84,12.7226422]
[1755595624522,3.02,181.92,181.84,12.7226422]
[1755595624719,4.35031377,181.91,181.84,12.7226422]
[1755595625022,3.02,181.92,181.84,12.7226422]
[1755595625323,4.3503134,181.91,181.85,4.4756422]
[1755595625523,3.02,181.92,181.85,4.4756422]
[1755595625724,4.35073213,181.91,181.85,4.4756422]
[1755595625924,3.02,181.92,181.85,4.4756422]
[1755595626123,4.35056661,181.91,181.85,4.4756422]
[1755595626320,3.02,181.92,181.85,4.4756422]
[1755595626523,4.35099507,181.91,181.85,4.4756422]
[1755595626724,3.02,181.92,181.85,9.9724422]
[1755595626930,4.35099507,181.91,181.85,9.9724422]
[1755595627122,3.02,181.92,181.85,9.9724422]
[1755595627317,4.35095231,181.91,181.85,9.9724422]
[1755595627525,3.02,181.91,181.87,2.75]
[1755595628328,3.62990496,181.97,181.85,4.4756422]
[1755595628628,6.83130809,181.96,181.86,2.75]
[1755595628930,3.02,181.89,181.86,2.75]
[1755595629317,135.12,181.99,181.85,4.4756422]
[1755595629318,3.62990496,181.94,181.85,4.4756422]
[1755595629521,3.02,181.92,181.84,4.4756422]
[1755595629716,3.02,181.9,181.84,4.4756422]
[1755595630421,3.02,181.89,181.85,7.2256422]
[1755595631422,3.62990496,181.94,181.85,7.2256422]
[1755595631731,3.02,181.88,181.85,7.2256422]
[1755595634134,3.62990496,181.94,181.85,7.2256422]
[1755595634330,3.02,181.87,181.85,7.2256422]
[1755595634723,3.02,181.87,181.85,2.75]
[1755595636328,3.62990496,181.94,181.84,4.4756422]
[1755595636534,3.02,181.92,181.83,4.4756422]
[1755595636735,3.02,181.9,181.83,4.4756422]
[1755595637029,3.02,181.88,181.83,4.4756422]
[1755595637333,3.02,181.86,181.83,4.4756422]
[1755595638434,3.02,181.85,181.83,4.4756422]
[1755595639131,3.62990496,181.94,181.83,4.4756422]
[1755595639340,3.62990496,181.91,181.82,4.4756422]
[1755595639536,3.02,181.89,181.82,4.4756422]
[1755595639730,4.35571375,181.88,181.82,4.4756422]
[1755595639930,3.02,181.89,181.82,4.4756422]
[1755595640226,3.02,181.87,181.82,4.4756422]
[1755595640430,3.02,181.87,181.81,4.4756422]
[1755595640730,4.37303454,181.86,181.8,4.4756422]
[1755595640929,3.02,181.84,181.8,4.4756422]
[1755595641135,3.02,181.83,181.8,4.4756422]
[1755595641336,3.02,181.83,181.8,2.75]
[1755595643748,2.99,181.9,181.79,4.4756422]
[1755595643953,2.99,181.88,181.79,4.4756422]
[1755595644248,2.99,181.86,181.79,4.4756422]
[1755595646248,2.99,181.86,181.78,121.33601079]
[1755595646249,2.99,181.86,181.78,125.81165299]
[1755595646951,2.99,181.86,181.79,7.2256422]
[1755595647455,2.99,181.86,181.79,2.75]
[1755595656358,2.99,181.86,181.78,125.85060116]
[1755595656554,2.99,181.86,181.78,121.33601079]
[1755595663357,2.99,181.86,181.78,124.08601079]
[1755595663761,2.99,181.86,181.79,2.75]
[1755595672365,2.32301076,181.85,181.79,2.75]
[1755595672570,2.32301076,181.85,181.78,121.33601079]
[1755595672770,2.98,181.82,181.79,2.75]
[1755595673165,2.98,181.82,181.78,121.33601079]
[1755595673363,2.98,181.82,181.79,2.75]
[1755595674264,2.98,181.82,181.8,2.75]
[1755595674871,2.98,181.84,181.78,121.33601079]
[1755595677471,2.98,181.84,181.79,2.75]
[1755595677664,2.32301076,181.85,181.78,121.33601079]
[1755595677860,2.98,181.83,181.8,2.75]
[1755595678269,2.98,181.92,181.81,2.75]
[1755595678465,6.16159525,181.93,181.81,2.75]
[1755595678466,2.98,181.84,181.81,2.75]
[1755595683272,2.98,181.87,181.8,7.26459037]
[1755595683469,7.3684999,181.86,181.83,2.75]
[1755595683669,2.98,181.89,181.84,2.75]
[1755595683874,7.36816463,181.88,181.85,2.75]
[1755595684074,2.98,181.88,181.84,2.75]
[1755595684275,2.98,181.88,181.85,2.75]
[1755595684472,2.98,181.88,181.86,2.75]
[1755595684780,2.98,181.89,181.86,2.75]
[1755595684978,4.38841369,181.88,181.86,2.75]
[1755595685183,4.38904238,181.87,181.83,5.07301076]
[1755595685385,2.98,181.86,181.83,5.07301076]
[1755595687470,2.98,181.86,181.84,2.75]
[1755595687778,2.32301076,181.9,181.84,2.75]
[1755595687971,2.98,181.87,181.84,2.75]
[1755595691574,2.98,181.94,181.84,2.75]
[1755595691774,2.98,181.89,181.84,2.75]
[1755595692071,369.56,181.95,181.84,2.75]
[1755595692072,4.3860431,181.88,181.85,2.32301076]
[1755595692278,2.98,181.91,181.88,2.75]
[1755595692579,2.98,181.91,181.87,2.32301076]
[1755595692580,2.98,181.89,181.85,2.32301076]
[1755595692778,2.98,181.89,181.87,2.75]
[1755595692981,2.32301076,181.94,181.85,2.32301076]
[1755595693275,4.38528204,181.93,181.89,2.32301076]
[1755595693479,2.32301076,181.96,181.89,2.32301076]
[1755595693480,4.38283409,181.92,181.89,2.32301076]
[1755595693682,2.98,181.9,181.89,2.32301076]
[1755595693876,2.32301076,181.96,181.89,2.32301076]
[1755595694077,2.98,181.92,181.89,2.32301076]
[1755595694276,2.98,181.92,181.89,5.07301076]
[1755595694677,2.32301076,181.96,181.89,2.32301076]
[1755595694872,2.98,181.94,181.91,2.75]
[1755595695077,4.38056773,181.93,181.91,2.75]
[1755595695282,2.98,181.94,181.91,2.75]
[1755595695475,4.37870526,181.93,181.91,2.75]
[1755595695675,2.98,181.94,181.91,2.75]
[1755595695871,4.37870526,181.93,181.9,2.75]
[1755595696075,2.32301076,181.96,181.9,2.75]
[1755595696278,4.3760845,181.95,181.92,2.75]